bitfinex/quotes_BTCUSD_20260126
["timestamp","ask_amount","ask_price","bid_price","bid_amount"]
[1769438579138,0.03,88301.0,88281.0,0.01132746]
[1769438579370,0.03,88299.0,88282.0,0.38453]
[1769438579567,0.03,88299.0,88277.0,0.409615]
[1769438579766,0.03,88299.0,88279.0,0.40473]
[1769438579968,0.03,88299.0,88268.0,1.441916]
[1769438580167,0.03,88299.0,88257.0,0.22660885]
[1769438580168,0.03,88299.0,88278.0,0.40473]
[1769438580373,0.03,88299.0,88280.0,0.41605759]
[1769438580731,0.03,88299.0,88282.0,0.38453]
[1769438580905,0.42714823,88303.0,88285.0,0.01132695]
[1769438580906,0.03,88298.0,88285.0,0.01132695]
[1769438581067,0.03,88296.0,88281.0,0.01132746]
[1769438581266,0.03,88296.0,88284.0,0.01132708]
[1769438581453,0.03,88296.0,88282.0,0.06796399]
[1769438581657,0.42714823,88290.0,88259.0,0.01133028]
[1769438581858,0.45714823,88279.0,88246.0,0.01133195]
[1769438582057,0.03,88269.0,88238.0,0.0004]
[1769438582280,0.03,88263.0,88238.0,0.0004]
[1769438582831,0.03,88261.0,88245.0,0.01133208]
[1769438582987,0.03,88261.0,88238.0,0.0004]
[1769438583232,0.03,88259.0,88238.0,0.0004]
[1769438583434,0.45714823,88259.0,88238.0,0.0004]
[1769438584227,0.04532,88262.0,88231.0,0.0004]
[1769438584228,0.0004,88238.0,88231.0,0.0004]
[1769438584443,0.0004,88238.0,88219.0,1e-08]
[1769438584614,0.03,88247.0,88219.0,1e-08]
[1769438584836,0.03,88243.0,88219.0,1e-08]
[1769438585012,0.45714823,88243.0,88219.0,1e-08]
[1769438585345,0.45714823,88243.0,88220.0,0.01133529]
[1769438585550,0.45714823,88243.0,88219.0,1e-08]
[1769438585551,0.03,88239.0,88219.0,1e-08]
[1769438585748,0.03,88237.0,88219.0,1e-08]
[1769438585952,0.05342796,88235.0,88219.0,1e-08]
[1769438586123,0.03,88235.0,88225.0,0.01133465]
[1769438586322,0.03,88235.0,88224.0,0.01133478]
[1769438586574,0.03,88235.0,88219.0,1e-08]
[1769438586794,0.03,88235.0,88222.0,0.01133504]
[1769438586915,0.03,88243.0,88222.0,0.01133504]
[1769438587120,0.03,88243.0,88219.0,1e-08]
[1769438587326,0.04532,88244.0,88219.0,1e-08]
[1769438587327,0.03,88237.0,88219.0,1e-08]
[1769438587574,0.024936,88242.0,88216.0,1e-08]
[1769438587575,0.45057619,88228.0,88216.0,1e-08]
[1769438587785,0.45057619,88228.0,88190.0,0.05669551]
[1769438587786,0.00039999,88216.0,88197.0,0.01133825]
[1769438587925,0.00039999,88216.0,88196.0,0.01173838]
[1769438588130,0.00039999,88216.0,88186.0,0.01959387]
[1769438588373,0.00039999,88216.0,88192.0,0.01133889]
[1769438588580,0.07532,88215.0,88200.0,0.01133786]
[1769438588756,0.03,88215.0,88205.0,0.01133722]
[1769438588936,0.04532,88219.0,88190.0,0.01133915]
[1769438589138,0.04532,88219.0,88186.0,0.01959387]
[1769438589139,0.04532,88219.0,88193.0,0.01133876]
[1769438589335,0.04532,88219.0,88195.0,0.06803092]
[1769438589599,0.04532,88219.0,88186.0,0.01959387]
[1769438589600,0.04532,88219.0,88200.0,0.05668933]
[1769438589875,0.04532,88219.0,88186.0,0.01959387]
[1769438589876,0.03,88218.0,88194.0,0.01133863]
[1769438590095,0.03,88218.0,88195.0,0.01133851]
[1769438590259,0.03,88218.0,88186.0,0.01959387]
[1769438590260,0.03,88218.0,88200.0,0.01133786]
[1769438590436,0.03,88218.0,88198.0,0.01133812]
[1769438590642,0.03,88218.0,88200.0,0.01133786]
[1769438590861,0.24714709,88228.0,88205.0,0.01133722]
[1769438590862,0.03,88217.0,88205.0,0.01133722]
[1769438591059,0.03,88217.0,88191.0,0.44781282]
[1769438591060,0.03,88217.0,88201.0,0.01133773]
[1769438591266,0.03,88217.0,88200.0,0.01133786]
[1769438591267,0.47312956,88270.0,88207.0,0.50935406]
[1769438591477,0.47312956,88250.0,88213.0,0.01133619]
[1769438591708,0.42714823,88247.0,88216.0,0.01133581]
[1769438591896,0.03,88239.0,88209.0,0.01133671]
[1769438592097,0.03,88233.0,88208.0,0.01133684]
[1769438592310,0.45714823,88233.0,88205.0,0.01133722]
[1769438592509,0.03,88233.0,88211.0,0.05668227]
[1769438592671,0.03,88233.0,88221.0,0.01133516]
[1769438592872,0.42714823,88251.0,88227.0,0.01133439]
[1769438593091,0.03,88250.0,88228.0,0.01133427]
[1769438593296,0.03,88250.0,88233.0,0.01133362]
[1769438593497,0.03,88232.0,88220.0,0.01133529]
[1769438594234,0.03,88232.0,88223.0,0.01133491]
[1769438594620,0.03,88231.0,88223.0,0.01133491]
[1769438594822,0.03,88231.0,88217.0,0.01133568]
[1769438594986,0.03,88231.0,88219.0,0.01133542]
[1769438595165,0.03,88231.0,88215.0,0.01133594]
[1769438595569,0.03,88230.0,88214.0,0.01133606]
[1769438595772,0.03,88230.0,88212.0,0.01133632]
[1769438596425,0.03,88230.0,88223.0,0.001]
[1769438596610,0.03,88229.0,88223.0,0.001]
[1769438596806,0.03,88229.0,88216.0,0.01133581]
[1769438597013,0.03,88229.0,88212.0,0.01133632]
[1769438597216,0.03,88227.0,88204.0,0.01133735]
[1769438597418,0.03,88227.0,88190.0,0.1482]
[1769438597419,0.45714823,88225.0,88195.0,0.01133851]
[1769438597600,0.45714823,88225.0,88194.0,0.01133863]
[1769438597820,0.03,88219.0,88188.0,0.01133941]
[1769438598026,0.03,88219.0,88186.0,0.05669802]
[1769438598027,0.45714823,88219.0,88186.0,0.01133966]
[1769438598227,0.08012248,88226.0,88174.0,0.02411373]
[1769438598228,0.03,88209.0,88179.0,0.01134056]
[1769438598465,0.52749172,88209.0,88178.0,0.06804415]
[1769438598664,0.52749172,88209.0,88180.0,0.01134044]
[1769438598870,0.52749172,88209.0,88175.0,0.22721336]
[1769438598871,0.03,88199.0,88175.0,0.0003927]
[1769438599074,0.49749172,88209.0,88175.0,0.0003927]
[1769438599075,0.03,88197.0,88176.0,0.01134095]
[1769438599434,0.03,88197.0,88185.0,0.01133979]
[1769438599603,0.07536,88197.0,88181.0,0.01134031]
[1769438599897,0.07536,88197.0,88175.0,0.01173378]
[1769438599898,0.07536,88197.0,88175.0,0.0003927]
[1769438600404,0.07536,88197.0,88169.0,0.01134185]
[1769438600405,0.03,88189.0,88169.0,0.01134185]
[1769438600604,0.03,88189.0,88168.0,0.0004]
[1769438600903,0.03,88189.0,88172.0,0.01134146]
[1769438601107,0.03,88189.0,88174.0,0.01134121]
[1769438601306,0.03,88188.0,88168.0,0.0004]
[1769438601470,0.03,88188.0,88170.0,0.01134172]
[1769438601870,0.03,88188.0,88168.0,0.0004]
[1769438602117,0.001,88189.0,88126.0,0.0364245]
[1769438602118,0.52749172,88186.0,88152.0,0.02195147]
[1769438602534,0.52749172,88186.0,88153.0,0.01134391]
[1769438602688,0.52749172,88186.0,88152.0,0.02195147]
[1769438602902,0.03,88161.0,88152.0,0.00060744]
[1769438603105,0.03,88161.0,88140.0,0.01134558]
[1769438603304,0.03,88159.0,88135.0,0.01134623]
[1769438603528,0.21956,88160.0,88130.0,0.01134687]
[1769438603529,0.49749172,88156.0,88130.0,0.01134687]
[1769438603718,0.693372,88160.0,88128.0,0.00113103]
[1769438603719,0.473812,88150.0,88128.0,0.00113103]
[1769438603890,0.03,88149.0,88126.0,0.0002]
[1769438604093,0.03,88149.0,88138.0,0.01134584]
[1769438604300,0.49749172,88168.0,88149.0,0.01]
[1769438604583,0.1742,88157.0,88149.0,0.01]
[1769438605144,0.49749172,88168.0,88149.0,0.01]
[1769438605385,0.03,88161.0,88149.0,0.01]
[1769438606511,0.03,88160.0,88149.0,0.01]
[1769438607384,0.03,88177.0,88150.0,0.06806566]
[1769438607583,0.03,88166.0,88149.0,0.01]
[1769438608514,0.03,88165.0,88151.0,0.01134417]
[1769438608726,0.03,88165.0,88150.0,0.01134429]
[1769438608727,0.02399061,88199.0,88160.0,0.01134301]
[1769438608905,0.02399061,88199.0,88150.0,0.473812]
[1769438608906,0.0454,88184.0,88162.0,0.01134275]
[1769438609074,0.49749172,88183.0,88140.0,0.473812]
[1769438609270,0.02399061,88177.0,88139.0,0.01134571]
[1769438609512,0.02399061,88177.0,88136.0,0.0454]
[1769438609513,0.49749172,88167.0,88136.0,0.0454]
[1769438609711,0.03,88164.0,88136.0,0.0454]
[1769438609914,0.03,88162.0,88136.0,0.0454]
[1769438610176,0.52749172,88160.0,88125.0,0.01134751]
[1769438610400,0.49749172,88155.0,88126.0,0.01154738]
[1769438610603,0.49780261,88160.0,88126.0,0.01154738]
[1769438610604,0.03,88150.0,88126.0,0.01154738]
[1769438610855,0.03,88150.0,88131.0,0.01134674]
[1769438611044,0.03,88150.0,88137.0,0.01134597]
[1769438611245,0.03,88150.0,88138.0,0.01134584]
[1769438611446,0.03,88150.0,88137.0,0.01134597]
[1769438611645,0.03,88149.0,88138.0,0.01134584]
[1769438611848,0.03,88149.0,88137.0,0.01134597]
[1769438612249,0.03,88149.0,88141.0,0.01134545]
[1769438612485,0.0454,88164.0,88146.0,0.01134481]
[1769438612608,0.0454,88164.0,88130.0,0.473812]
[1769438612609,0.03,88163.0,88142.0,0.01134532]
[1769438612804,0.03,88163.0,88141.0,0.0680724]
[1769438613005,0.03,88163.0,88140.0,0.01134558]
[1769438613212,0.03,88161.0,88140.0,0.01134558]
[1769438613539,0.03,88161.0,88138.0,0.06807457]
[1769438613740,0.03,88161.0,88138.0,0.01134584]
[1769438613928,0.03,88161.0,88142.0,0.01134532]
[1769438614132,0.03,88161.0,88137.0,0.01134597]
[1769438614330,0.03,88161.0,88121.0,0.0364245]
[1769438614331,0.03,88159.0,88134.0,0.01134635]
[1769438614531,0.03,88159.0,88133.0,0.01134648]
[1769438614735,0.03,88159.0,88131.0,0.01134674]
[1769438614736,0.52749172,88159.0,88131.0,0.01134674]
[1769438614936,0.03,88149.0,88126.0,0.0002]
[1769438615164,0.52749172,88149.0,88126.0,0.0002]
[1769438615364,0.03,88147.0,88126.0,0.0002]
[1769438615558,0.03,88147.0,88130.0,0.06808088]
[1769438615740,0.473812,88170.0,88132.0,0.06807969]
[1769438616077,0.02399061,88166.0,88135.0,0.01134623]
[1769438616278,0.03,88164.0,88135.0,0.01134623]
[1769438616440,0.03,88162.0,88133.0,0.02494865]
[1769438616644,0.03,88162.0,88142.0,0.01134532]
[1769438616879,0.03,88160.0,88140.0,0.473812]
[1769438617039,0.0754,88160.0,88137.0,0.01134597]
[1769438617251,0.0754,88160.0,88136.0,0.0113461]
[1769438617457,0.0754,88160.0,88138.0,0.01134584]
[1769438617657,0.0754,88160.0,88140.0,0.01134558]
[1769438617857,0.0754,88160.0,88133.0,0.02494865]
[1769438618116,0.0754,88160.0,88124.0,0.06808536]
[1769438618117,0.52749172,88158.0,88124.0,0.06808536]
[1769438618318,0.03,88149.0,88121.0,0.0002]
[1769438618591,0.52749172,88149.0,88121.0,0.0002]
[1769438618766,0.52749172,88149.0,88122.0,0.0113479]
[1769438618970,0.52749172,88149.0,88121.0,0.0002]
[1769438618971,0.52749172,88149.0,88128.0,0.01134713]
[1769438619157,0.52749172,88149.0,88127.0,0.01134726]
[1769438619358,0.52749172,88149.0,88126.0,0.01154738]
[1769438619359,0.0754,88148.0,88134.0,0.06807804]
[1769438619580,0.0754,88148.0,88129.0,0.05673484]
[1769438619737,0.0754,88148.0,88131.0,0.01134674]
[1769438619939,0.0754,88148.0,88130.0,0.05673403]
[1769438619940,0.03,88148.0,88130.0,0.473812]
[1769438620143,0.03,88148.0,88135.0,0.01134623]
[1769438620339,0.03,88147.0,88132.0,0.01134661]
[1769438620577,0.03,88147.0,88123.0,0.01134777]
[1769438620743,0.03,88147.0,88122.0,0.0113479]
[1769438620949,0.03,88147.0,88119.0,0.01134829]
[1769438621363,0.03,88146.0,88118.0,0.01229271]
[1769438621565,0.52749172,88146.0,88118.0,0.0009443]
[1769438621983,0.52749172,88146.0,88118.0,0.01229271]
[1769438622422,0.17432,88157.0,88118.0,0.01229271]
[1769438622423,0.03,88145.0,88130.0,0.06808105]
[1769438622612,0.17436,88166.0,88145.0,0.01]
[1769438622988,0.49749172,88171.0,88145.0,0.01]
[1769438623192,0.21976,88170.0,88145.0,0.01]
[1769438623520,0.03,88169.0,88145.0,0.01]
[1769438623935,0.001,88166.0,88145.0,0.01]
[1769438624156,0.03,88164.0,88145.0,0.01]
[1769438625035,0.03,88164.0,88123.0,0.02494865]
[1769438625240,0.03,88162.0,88140.0,0.01134558]
[1769438625442,0.03,88160.0,88131.0,0.01134674]
[1769438625653,0.03,88160.0,88133.0,0.01134648]
[1769438626070,0.03,88160.0,88134.0,0.01134635]
[1769438626282,0.03,88160.0,88133.0,0.01134648]
[1769438626451,0.03,88159.0,88128.0,0.01134713]
[1769438626652,0.24976,88159.0,88128.0,0.01134713]
[1769438626890,0.24976,88159.0,88132.0,0.01134661]
[1769438627053,0.24976,88159.0,88129.0,0.011347]
[1769438627272,0.03,88155.0,88129.0,0.06808163]
[1769438627475,0.03,88155.0,88134.0,0.01134635]
[1769438627893,0.03,88155.0,88135.0,0.01134623]
[1769438628102,0.03,88155.0,88127.0,0.01134726]
[1769438628256,0.03,88153.0,88126.0,0.0002]
[1769438628642,0.03,88146.0,88126.0,0.0002]
[1769438628871,0.03,88144.0,88126.0,0.0002]
[1769438629227,0.51807021,88147.0,88126.0,0.0002]
[1769438629228,0.03,88142.0,88126.0,0.0002]
[1769438629465,0.03,88140.0,88126.0,0.0002]
[1769438629693,0.51807021,88147.0,88130.0,0.01134687]
[1769438629694,0.0454,88147.0,88130.0,0.01134687]
[1769438629891,0.11313921,88146.0,88128.0,0.01134713]
[1769438630102,0.17436,88152.0,88130.0,0.01134687]
[1769438630275,0.11324056,88151.0,88140.0,0.01134558]
[1769438630479,0.14324056,88150.0,88132.0,0.01134661]
[1769438630675,0.1347721,88166.0,88131.0,0.02276086]
[1769438630676,0.03,88148.0,88131.0,0.02276086]
[1769438630900,0.03,88146.0,88131.0,0.02276086]
[1769438631100,0.03,88146.0,88126.0,0.0002]
[1769438631263,0.51807021,88152.0,88126.0,0.0002]
[1769438631264,0.03,88144.0,88126.0,0.0002]
[1769438631448,0.03,88142.0,88126.0,0.0002]
[1769438631643,0.03,88140.0,88126.0,0.0002]
[1769438632461,0.03,88140.0,88132.0,0.001]
[1769438632661,0.03,88139.0,88132.0,0.001]
[1769438632986,0.03,88139.0,88126.0,0.0002]
[1769438633162,0.03,88139.0,88130.0,0.01134687]
[1769438633489,0.17436,88155.0,88134.0,0.01134635]
[1769438633490,0.17436,88150.0,88134.0,0.01134635]
[1769438633688,0.17436,88150.0,88126.0,0.0002]
[1769438633689,0.14335907,88149.0,88126.0,0.0002]
[1769438633907,0.03,88147.0,88126.0,0.0002]
[1769438634071,0.03,88145.0,88126.0,0.0002]
[1769438634271,0.03,88143.0,88126.0,0.0002]
[1769438634475,0.03,88141.0,88126.0,0.0002]
[1769438634679,0.11194892,88140.0,88126.0,0.0002]
[1769438634878,0.08921605,88148.0,88126.0,0.0002]
[1769438635059,0.08921605,88149.0,88126.0,0.0002]
[1769438635759,0.03,88143.0,88126.0,0.0002]
[1769438636182,0.03,88143.0,88127.0,0.05673602]
[1769438636394,0.03,88141.0,88126.0,0.0002]
[1769438639433,0.03,88139.0,88126.0,0.0002]
[1769438639799,0.54807021,88137.0,88121.0,0.0002]
[1769438639996,0.03,88131.0,88103.0,0.01155035]
[1769438640203,0.03,88131.0,88103.0,0.06830181]
[1769438640406,0.03,88127.0,88103.0,0.0002]
[1769438640522,0.05285954,88125.0,88103.0,0.0002]
[1769438640929,0.03,88119.0,88103.0,0.0002]
[1769438641137,0.1347721,88139.0,88097.0,0.0002]
[1769438641138,0.0002,88103.0,88097.0,0.0002]
[1769438641343,0.2044,88102.0,88091.0,0.02236354]
[1769438641799,0.03,88102.0,88091.0,0.02236354]
[1769438642000,0.03,88100.0,88091.0,0.02236354]
[1769438643298,0.03,88109.0,88100.0,0.0002]
[1769438643536,0.09072786,88125.0,88103.0,0.01135035]
[1769438643760,0.1744,88135.0,88112.0,0.01134919]
[1769438644169,0.1744,88144.0,88123.0,0.01134777]
[1769438644367,0.03,88142.0,88127.0,0.01134726]
[1769438644579,0.03,88142.0,88138.0,0.01134584]
[1769438644790,0.1135874,88168.0,88145.0,0.01134494]
[1769438645000,0.1135874,88168.0,88142.0,0.0002]
[1769438645001,0.21984,88167.0,88142.0,0.0002]
[1769438645216,0.02285954,88168.0,88142.0,0.0002]
[1769438645440,0.06804114,88182.0,88150.0,0.01134429]
[1769438645441,0.03,88165.0,88150.0,0.01134429]
[1769438645654,0.03,88165.0,88145.0,0.01134494]
[1769438645870,0.03,88165.0,88140.0,0.473812]
[1769438646097,0.03,88165.0,88141.0,0.01134545]
[1769438646308,0.03,88165.0,88153.0,0.01134391]
[1769438646519,0.51807021,88183.0,88154.0,0.01134378]
[1769438646733,0.21984,88182.0,88155.0,0.01134365]
[1769438646942,0.11299594,88181.0,88151.0,0.01134417]
[1769438647151,0.11299594,88181.0,88153.0,0.01134391]
[1769438647351,0.14627953,88181.0,88154.0,0.01134378]
[1769438647575,0.14299594,88180.0,88153.0,0.01134391]
[1769438647826,0.20768359,88181.0,88139.0,0.01134571]
[1769438647827,0.03,88169.0,88139.0,0.01134571]
[1769438648042,0.473812,88170.0,88130.0,0.01134687]
[1769438648043,0.03,88152.0,88130.0,0.01134687]
[1769438648263,0.03,88152.0,88135.0,0.01134623]
[1769438648483,0.51807021,88177.0,88145.0,0.01134494]
[1769438648744,0.11297884,88176.0,88150.0,0.01134429]
[1769438648947,0.03,88176.0,88150.0,0.01134429]
[1769438649204,0.03,88174.0,88153.0,0.01134391]
[1769438649388,0.03,88174.0,88151.0,0.01134417]
[1769438649509,0.03,88174.0,88148.0,0.01134455]
[1769438649709,0.03,88174.0,88150.0,0.01134429]
[1769438649960,0.03,88174.0,88152.0,0.01134404]
[1769438650133,0.03,88173.0,88151.0,0.01134417]
[1769438650333,0.03,88173.0,88144.0,0.01134507]
[1769438650647,0.54807021,88171.0,88138.0,0.01134584]
[1769438650826,0.54807021,88171.0,88133.0,0.01134648]
[1769438650827,0.54807021,88165.0,88133.0,0.01134648]
[1769438651024,0.54807021,88165.0,88140.0,0.05672746]
[1769438651025,0.57092975,88165.0,88140.0,0.05672746]
[1769438651320,0.03,88165.0,88132.0,0.5144959]
[1769438651526,0.03,88161.0,88131.0,0.01134674]
[1769438651737,0.03,88161.0,88121.0,0.5144959]
[1769438651738,0.57092975,88161.0,88134.0,0.06807793]
[1769438651934,0.57092975,88161.0,88135.0,0.01134623]
[1769438652091,0.57092975,88161.0,88127.0,0.05678726]
[1769438652293,0.21976,88169.0,88127.0,0.05678726]
[1769438652294,0.03,88159.0,88127.0,0.04544]
[1769438652476,0.03,88153.0,88127.0,0.04544]
[1769438652876,0.30533914,88154.0,88127.0,0.04544]
[1769438653594,0.03,88161.0,88133.0,0.01134648]
[1769438653805,0.03,88159.0,88134.0,0.01134635]
[1769438654128,0.03,88159.0,88132.0,0.01134661]
[1769438654334,0.03,88159.0,88135.0,0.01134623]
[1769438654536,0.03,88159.0,88134.0,0.01134635]
[1769438654737,0.03,88158.0,88142.0,0.01134532]
[1769438655043,0.03,88158.0,88139.0,0.01134571]
[1769438655248,0.03,88158.0,88141.0,0.01134545]
[1769438655447,0.03,88158.0,88138.0,0.01134584]
[1769438655653,0.0454,88182.0,88158.0,0.0002]
[1769438655962,0.14291331,88181.0,88158.0,0.0002]
[1769438656243,0.0454,88182.0,88145.0,0.01134494]
[1769438656244,0.54807021,88175.0,88145.0,0.01134494]
[1769438656418,0.03,88173.0,88147.0,0.01134468]
[1769438656645,0.01,88147.0,88115.0,0.05674359]
[1769438656812,0.54807021,88139.0,88106.0,0.01134996]
[1769438657007,0.54807021,88139.0,88101.0,0.02276086]
[1769438657008,0.54807021,88139.0,88111.0,0.01134932]
[1769438657211,0.54807021,88139.0,88107.0,0.01134983]
[1769438657413,0.54807021,88139.0,88109.0,0.01134957]
[1769438657619,0.54807021,88139.0,88088.0,0.0454]
[1769438657930,0.51807021,88136.0,88100.0,0.01135073]
[1769438658093,0.14294944,88135.0,88101.0,0.0113506]
[1769438658295,0.03,88133.0,88102.0,0.01135048]
[1769438658500,0.03,88133.0,88107.0,0.01134983]
[1769438658872,0.03,88133.0,88105.0,0.01135009]
[1769438659032,0.03,88133.0,88082.0,0.45412111]
[1769438659237,0.03,88127.0,88093.0,0.01135163]
[1769438659436,0.54337594,88127.0,88094.0,0.01135151]
[1769438659841,0.54337594,88127.0,88093.0,0.01135163]
[1769438660071,0.03,88121.0,88091.0,0.03371543]
[1769438660251,0.03,88119.0,88091.0,0.03371543]
[1769438660658,0.03,88119.0,88091.0,0.02236354]
[1769438660858,0.54337594,88119.0,88091.0,0.02236354]
[1769438661057,0.03,88117.0,88101.0,0.0113506]
[1769438661424,0.03,88117.0,88109.0,0.01134957]
[1769438661754,0.03,88117.0,88091.0,0.02236354]
[1769438661957,0.03,88116.0,88106.0,0.01134996]
[1769438662360,0.03,88116.0,88105.0,0.05675045]
[1769438662361,0.1744,88139.0,88116.0,0.01134867]
[1769438662584,0.53633057,88146.0,88100.0,0.49742433]
[1769438662585,0.2198,88142.0,88100.0,0.47459463]
[1769438662748,0.2198,88142.0,88113.0,0.01134906]
[1769438662950,0.03,88140.0,88114.0,0.01134893]
[1769438663245,0.03,88140.0,88117.0,0.01134854]
[1769438663450,0.03,88140.0,88116.0,0.01134867]
[1769438663658,0.03,88140.0,88115.0,0.06809251]
[1769438663659,0.03,88140.0,88114.0,0.01134893]
[1769438663854,0.03,88140.0,88112.0,0.01134919]
[1769438664060,0.03,88140.0,88110.0,0.53134142]
[1769438664061,0.03,88139.0,88110.0,0.48594407]
[1769438664261,0.03,88139.0,88111.0,0.01134932]
[1769438664681,0.03,88139.0,88110.0,0.01134944]
[1769438664883,0.03,88139.0,88105.0,0.01135009]
[1769438665090,0.03,88138.0,88109.0,0.01134957]
[1769438665417,0.03,88138.0,88115.0,0.05674371]
[1769438665722,0.03,88138.0,88113.0,0.01134906]
[1769438665923,0.03,88138.0,88111.0,0.05674619]
[1769438665924,0.03,88138.0,88119.0,0.01134829]
[1769438666081,0.03,88137.0,88122.0,0.0113479]
[1769438666282,0.03,88137.0,88118.0,0.01134841]
[1769438666483,0.03,88137.0,88119.0,0.01134829]
[1769438666787,0.03,88137.0,88114.0,0.0228297]
[1769438666987,0.03,88137.0,88089.0,0.1482]
[1769438666988,0.03,88140.0,88102.0,0.01135048]
[1769438667192,0.03,88138.0,88110.0,0.01134944]
[1769438667413,0.03,88138.0,88112.0,0.01134919]
[1769438667616,0.03,88136.0,88117.0,0.05674213]
[1769438667828,0.03,88136.0,88121.0,0.06808794]
[1769438668164,0.03,88136.0,88100.0,0.47459463]
[1769438668306,0.03,88136.0,88011.0,0.50780664]
[1769438668307,0.03,88134.0,88113.0,0.01134906]
[1769438668768,0.03,88134.0,88112.0,0.01134919]
[1769438668991,0.03,88134.0,88113.0,0.01134906]
[1769438669109,0.08663306,88134.0,88115.0,0.0113488]
[1769438669313,0.03,88133.0,88118.0,0.01134841]
[1769438669546,0.03,88133.0,88121.0,0.01134803]
[1769438669710,0.03,88133.0,88119.0,0.01134829]
[1769438669910,0.03,88133.0,88120.0,0.01134816]
[1769438670107,0.03,88133.0,88112.0,0.01134919]
[1769438670312,0.03,88132.0,88117.0,0.01134854]
[1769438670536,0.03,88132.0,88118.0,0.01134841]
[1769438670975,0.03,88132.0,88114.0,0.01134893]
[1769438671150,0.03,88132.0,88068.0,0.0036582]
[1769438671151,0.03,88130.0,88112.0,0.06809478]
[1769438671349,0.03,88130.0,88113.0,0.06809401]
[1769438671549,0.03,88130.0,88113.0,0.01134906]
[1769438671866,0.03,88130.0,88110.0,0.05674723]
[1769438672071,0.03,88129.0,88110.0,0.01134944]
[1769438672275,0.03,88129.0,88111.0,0.06809575]
[1769438672639,0.03,88129.0,88115.0,0.0113488]
[1769438672838,0.03,88129.0,88111.0,0.06809558]
[1769438673067,0.03,88129.0,88112.0,0.05674592]
[1769438673273,0.03,88128.0,88113.0,0.01134906]
[1769438673509,0.03,88128.0,88104.0,0.22700228]
[1769438673510,0.03,88128.0,88093.0,0.01135163]
[1769438673722,0.03,88112.0,88091.0,0.03371543]
[1769438673956,0.03,88112.0,88091.0,0.02236354]
[1769438674390,0.03,88112.0,88092.0,0.01135176]
[1769438674612,0.03,88112.0,88093.0,0.01135163]
[1769438674819,0.03,88111.0,88099.0,0.01135086]
[1769438675032,0.09072786,88135.0,88108.0,0.0113497]
[1769438675263,0.21984,88132.0,88111.0,0.01134932]
[1769438675494,0.11297376,88131.0,88109.0,0.01134957]
[1769438675714,0.0132,88118.0,88111.0,0.01134932]
[1769438675920,0.03,88117.0,88105.0,0.01135009]
[1769438676138,0.03,88117.0,88106.0,0.01134996]
[1769438676354,0.04544,88133.0,88112.0,0.01134919]
[1769438676578,0.11297422,88132.0,88111.0,0.01134932]
[1769438676801,0.11297422,88131.0,88111.0,0.01134932]
[1769438677017,0.03,88130.0,88111.0,0.01134932]
[1769438677208,0.03,88130.0,88113.0,0.01134906]
[1769438677418,0.03,88130.0,88104.0,0.22700338]
[1769438677419,0.03,88130.0,88109.0,0.01134957]
[1769438677549,0.03,88130.0,88109.0,0.06809712]
[1769438677750,0.03,88129.0,88109.0,0.01134957]
[1769438678386,0.03,88129.0,88108.0,0.0113497]
[1769438678730,0.03,88128.0,88111.0,0.01134932]
[1769438678879,0.03,88128.0,88114.0,0.01134893]
[1769438679257,0.04544,88150.0,88133.0,0.01134648]
[1769438679452,0.11305644,88149.0,88128.0,0.01134713]
[1769438679665,0.11305644,88148.0,88130.0,0.01134687]
[1769438679884,0.03,88165.0,88153.0,0.01134391]
[1769438680056,0.04544,88176.0,88157.0,0.01134339]
[1769438680201,0.11302709,88175.0,88156.0,0.01134352]
[1769438680413,0.11302709,88175.0,88155.0,0.06806134]
[1769438680414,0.11302284,88174.0,88152.0,0.01134404]
[1769438680625,0.1130248,88173.0,88149.0,0.01134442]
[1769438680829,0.04544,88176.0,88153.0,0.01134391]
[1769438680830,0.03,88175.0,88153.0,0.01134391]
[1769438681071,0.03,88173.0,88155.0,0.01134365]
[1769438681328,0.03,88173.0,88144.0,0.0228297]
[1769438681329,0.03,88173.0,88159.0,0.05671536]
[1769438681501,0.03,88173.0,88157.0,0.01134339]
[1769438681703,0.03,88173.0,88159.0,0.01134314]
[1769438681906,0.03,88173.0,88156.0,0.01134352]
[1769438682126,0.51337594,88188.0,88154.0,0.51298767]
[1769438682451,0.51337594,88203.0,88175.0,0.05670515]
[1769438682653,0.11287825,88202.0,88179.0,0.01134056]
[1769438682852,0.11287825,88201.0,88175.0,0.01134108]
[1769438682982,0.03,88199.0,88173.0,0.01134134]
[1769438683188,0.03,88199.0,88174.0,0.06804724]
[1769438683408,0.03,88199.0,88170.0,0.01134172]
[1769438683576,0.03,88199.0,88173.0,0.01134134]
[1769438683774,0.03,88199.0,88176.0,0.01134095]
[1769438683977,0.03,88199.0,88156.0,0.34030351]
[1769438683978,0.03,88198.0,88187.0,0.01133953]
[1769438684256,0.02295463,88220.0,88183.0,0.01134005]
[1769438684424,0.51337594,88218.0,88186.0,0.01133966]
[1769438684624,0.51337594,88216.0,88183.0,0.01134005]
[1769438684827,0.51337594,88213.0,88180.0,0.01134044]
[1769438685010,0.03,88212.0,88179.0,0.06804336]
[1769438685346,0.03,88210.0,88178.0,0.01134069]
[1769438685560,0.54337594,88210.0,88180.0,0.01134044]
[1769438685907,0.54337594,88210.0,88181.0,0.01134031]
[1769438686103,0.01133542,88219.0,88180.0,0.01134044]
[1769438686104,0.03,88213.0,88188.0,0.05669704]
[1769438686343,0.03,88213.0,88194.0,0.01133863]
[1769438686717,0.03,88213.0,88190.0,0.47459463]
[1769438686925,0.03,88213.0,88187.0,0.0228297]
[1769438687126,0.0007293,88222.0,88188.0,0.01133941]
[1769438687309,0.0007293,88222.0,88187.0,0.0228297]
[1769438687310,0.54337594,88221.0,88187.0,0.03416923]
[1769438687942,0.54337594,88221.0,88192.0,0.06803281]